bitfinex/quotes_SOLUSD_20241013
["timestamp","ask_amount","ask_price","bid_price","bid_amount"]
[1728857704335,22.87176937,148.8,148.74,34.50285737]
[1728857704849,23.776884,148.79,148.74,34.50285737]
[1728857705036,24.12215337,148.79,148.75,1.344384]
[1728857705239,15.8057,148.8,148.75,1.344384]
[1728857705450,16.6111,148.84,148.76,10.97315737]
[1728857705635,7.06466937,148.83,148.77,8.065892]
[1728857705847,7.06466937,148.83,148.78,8.06529679]
[1728857705848,0.34526937,148.83,148.78,8.06529679]
[1728857706150,16.6111,148.84,148.78,10.97315737]
[1728857706332,16.6111,148.84,148.8,6.72]
[1728857706532,23.67356937,148.88,148.81,18.14358821]
[1728857706733,23.67356937,148.88,148.83,6.7189]
[1728857707036,16.6111,148.88,148.83,18.1402953]
[1728857707232,0.34526937,148.9,148.85,6.7181]
[1728857708236,0.34526937,148.9,148.83,23.5153]
[1728857708458,6.7168,148.88,148.83,23.5153]
[1728857708645,0.34526937,148.87,148.83,23.5153]
[1728857708845,0.34526937,148.87,148.8,6.4362]
[1728857709049,6.7173,148.87,148.81,6.7199]
[1728857710462,6.7173,148.87,148.8,6.4362]
[1728857710664,6.7173,148.87,148.82,6.7194]
[1728857710863,6.7173,148.87,148.8,6.4362]
[1728857710864,23.776884,148.88,148.83,8.06262269]
[1728857711163,23.776884,148.9,148.85,6.7181]
[1728857711363,30.492884,148.9,148.84,6.7186]
[1728857711537,6.7168,148.88,148.82,16.7988]
[1728857711864,22.7011,148.86,148.79,16.8021]
[1728857712167,7.06336937,148.85,148.8,6.7203]
[1728857712547,15.983,148.86,148.81,6.7198]
[1728857712759,15.983,148.86,148.82,6.7193]
[1728857712760,16.32826937,148.86,148.82,6.7193]
[1728857713061,30.83895337,148.88,148.83,6.7189]
[1728857713259,24.12215337,148.88,148.81,6.7196]
[1728857713468,23.776884,148.85,148.81,6.7196]
[1728857713638,0.34526937,148.84,148.8,6.7204]
[1728857714243,23.776884,148.85,148.8,6.7204]
[1728857714664,23.776884,148.87,148.82,6.7195]
[1728857714849,30.83935337,148.87,148.82,6.7195]
[1728857715043,0.34526937,148.89,148.84,6.7185]
[1728857715267,22.3474,148.9,148.85,8.06148858]
[1728857715471,7.06036937,148.92,148.87,6.7172]
[1728857715641,0.34526937,148.92,148.88,6.7168]
[1728857715843,0.34526937,148.93,148.89,6.7161]
[1728857716155,6.715,148.92,148.86,6.7173]
[1728857716354,7.06066937,148.91,148.86,6.7173]
[1728857716560,6.7159,148.9,148.84,16.7956]
[1728857716762,0.34526937,148.89,148.84,23.5141]
[1728857717160,0.34526937,148.93,148.85,6.7179]
[1728857717381,6.7155,148.91,148.86,6.7174]
[1728857717550,24.12215337,148.9,148.86,6.7174]
[1728857718180,24.12215337,148.9,148.84,16.7956]
[1728857718181,24.12215337,148.9,148.85,6.7181]
[1728857719074,24.12215337,148.9,148.84,16.7956]
[1728857719371,0.34526937,148.93,148.9,6.7156]
[1728857719547,16.26836937,148.98,148.87,17.09720459]
[1728857719748,6.7128,148.97,148.92,6.715]
[1728857719947,0.34526937,148.96,148.92,6.715]
[1728857720256,7.05806937,148.97,148.93,1.34279139]
[1728857720454,7.05806937,148.97,148.92,6.715]
[1728857721065,7.05806937,148.97,148.93,1.3427382]
[1728857721273,7.05806937,148.97,148.92,6.715]
[1728857721860,0.34526937,148.97,148.9,23.5052]
[1728857722185,0.34526937,148.97,148.9,16.7897]
[1728857722186,6.714,148.95,148.9,16.7897]
[1728857722474,0.34526937,148.94,148.9,16.7897]
[1728857723559,0.34526937,148.94,148.89,6.5621]
[1728857723876,6.714,148.95,148.9,8.05877948]
[1728857724078,6.714,148.95,148.9,6.7158]
[1728857724715,7.05936937,148.94,148.89,13.2784]
[1728857724997,6.715,148.92,148.87,23.5099]
[1728857726092,6.7146,148.93,148.88,6.7168]
[1728857726606,6.714,148.95,148.87,33.89030459]
[1728857726894,6.7137,148.95,148.9,6.7158]
[1728857728395,0.34526937,148.96,148.91,1.3428912]
[1728857728578,7.05836937,148.97,148.93,6.7145]
[1728857728783,0.34526937,148.97,148.91,16.7876]
[1728857728982,0.34526937,148.97,148.87,17.09720459]
[1728857729299,6.714,148.95,148.89,6.7162]
[1728857730373,6.714,148.95,148.9,6.7158]
[1728857731297,0.34526937,148.94,148.88,16.7917]
[1728857731513,6.7158,148.91,148.86,6.7175]
[1728857731722,6.7158,148.91,148.85,6.4078]
[1728857731723,0.34526937,148.9,148.85,6.4078]
[1728857731919,6.7169,148.88,148.84,16.7956]
[1728857732407,6.7164,148.89,148.84,16.7956]
[1728857732619,0.34526937,148.92,148.86,16.7934]
[1728857732799,0.34526937,148.94,148.86,16.7934]
[1728857733191,6.715,148.92,148.87,6.7171]
[1728857733810,6.7146,148.93,148.88,8.05989493]
[1728857734189,24.12215337,148.94,148.88,1.34319493]
[1728857734411,30.83635337,148.94,148.89,6.7163]
[1728857735008,24.12215337,148.94,148.87,1.34308061]
[1728857735205,30.83625337,148.94,148.89,6.7163]
[1728857735405,30.83625337,148.94,148.88,16.7911]
[1728857735609,24.12215337,148.94,148.9,6.7158]
[1728857735811,22.3876,148.95,148.9,6.7158]
[1728857736615,22.3876,148.95,148.88,23.5075]
[1728857736616,6.7146,148.93,148.88,23.5075]
[1728857736815,6.7146,148.93,148.89,6.7163]
[1728857737586,15.6739,148.95,148.9,1.34300438]
[1728857737814,15.6739,148.95,148.89,1.34287084]
[1728857738018,23.776884,148.95,148.89,1.34287084]
[1728857738197,6.7123,148.98,148.93,6.7145]
[1728857738401,0.34526937,148.97,148.93,6.7145]
[1728857739712,24.12215337,148.97,148.93,6.7145]
[1728857740038,7.05806937,148.97,148.93,6.7145]
[1728857740530,6.7133,148.96,148.91,6.7154]
[1728857742207,6.7137,148.95,148.9,23.5047]
[1728857742438,7.05936937,148.94,148.9,16.7889]
[1728857742607,6.7154,148.91,148.87,16.7929]
[1728857743107,7.06116937,148.9,148.84,23.183]
[1728857743313,6.7166,148.89,148.84,29.9015]
[1728857743707,0.34526937,148.88,148.84,29.9015]
[1728857743911,0.34526937,148.88,148.84,16.7964]
[1728857744211,6.7164,148.89,148.84,16.7964]
[1728857744523,6.7159,148.9,148.84,23.515]
[1728857744930,6.7159,148.9,148.85,6.7181]
[1728857745133,7.06116937,148.9,148.85,6.7181]
[1728857746027,7.06116937,148.9,148.84,16.7964]
[1728857746028,24.12215337,148.91,148.86,1.34337765]
[1728857746237,30.83765337,148.91,148.86,8.06097765]
[1728857746434,6.7159,148.9,148.85,6.7181]
[1728857747414,7.06156937,148.89,148.84,23.5149]
[1728857747939,23.776884,148.89,148.85,8.06154083]
[1728857748517,30.493384,148.89,148.84,16.7964]
[1728857748920,23.776884,148.89,148.85,6.7181]
[1728857749126,23.776884,148.89,148.85,8.06148798]
[1728857749321,23.776884,148.89,148.85,6.7181]
[1728857749525,30.493184,148.89,148.84,23.515]
[1728857749726,23.776884,148.89,148.85,1.34344065]
[1728857749932,23.776884,148.89,148.85,8.06154065]
[1728857750729,6.7159,148.9,148.85,8.06154065]
[1728857751145,6.7159,148.9,148.85,6.7181]
[1728857752028,6.7159,148.9,148.86,6.7176]
[1728857752212,30.83765337,148.91,148.86,6.7176]
[1728857752635,30.83765337,148.91,148.87,1.34325885]
[1728857753546,30.83765337,148.91,148.86,6.7176]
[1728857754141,6.7204,148.8,148.76,6.1617]
[1728857754441,16.7952,148.86,148.74,16.8067]
[1728857754442,6.7209,148.79,148.74,16.8067]
[1728857754641,6.7214,148.78,148.72,12.8831]
[1728857754823,6.7214,148.78,148.72,16.22693995]
[1728857755020,6.72,148.81,148.75,6.7226]
[1728857755224,0.34526937,148.8,148.73,16.8079]
[1728857755436,7.06566937,148.8,148.74,6.7231]
[1728857755638,0.34526937,148.8,148.73,16.8079]
[1728857755936,7.06586937,148.8,148.74,6.7231]
[1728857756139,0.34526937,148.81,148.73,16.8079]
[1728857756451,30.496784,148.81,148.75,6.7226]
[1728857757741,6.721,148.79,148.74,6.7231]
[1728857757951,6.7219,148.77,148.73,16.8079]
[1728857758537,6.7219,148.77,148.69,23.22540459]
[1728857758748,6.7231,148.75,148.69,29.6658]
[1728857758948,0.34526937,148.79,148.69,22.9406]
[1728857759164,6.7219,148.77,148.71,6.7243]
[1728857759829,24.12215337,148.79,148.71,6.7243]
[1728857760039,6.7222,148.76,148.71,6.7243]
[1728857761023,0.34526937,148.79,148.71,6.7243]
[1728857761223,16.8014,148.8,148.69,22.9406]
[1728857761224,24.12215337,148.8,148.72,18.15376477]
[1728857761428,6.7201,148.81,148.72,1.34446477]
[1728857761641,6.7201,148.81,148.75,23.5292]
[1728857762043,7.06476937,148.82,148.77,6.7213]
[1728857762225,6.72,148.81,148.76,6.7222]
[1728857763130,6.7205,148.8,148.75,23.5291]
[1728857763426,6.7205,148.8,148.75,16.8066]
[1728857764128,24.12215337,148.82,148.72,23.5336]
[1728857764344,6.7216,148.78,148.72,23.5336]
[1728857764546,6.7218,148.77,148.72,23.5336]
[1728857765226,40.92175337,148.82,148.73,1.34438585]
[1728857765430,6.7212,148.79,148.73,8.06778585]
[1728857765959,40.92175337,148.82,148.73,8.06778585]
[1728857765960,6.7214,148.78,148.73,8.06778585]
[1728857766245,6.7214,148.78,148.72,16.8098]
[1728857766246,0.34526937,148.77,148.72,16.8098]
[1728857766450,6.7222,148.76,148.72,16.8098]
[1728857770029,6.7229,148.75,148.7,6.7248]
[1728857770636,6.7222,148.76,148.71,6.7244]
[1728857772031,21.7961,148.76,148.71,6.7244]
[1728857773762,6.7227,148.75,148.71,6.7244]
[1728857774256,6.7227,148.75,148.69,29.6666]
[1728857774257,6.7232,148.74,148.69,29.6666]
[1728857774436,6.7236,148.73,148.69,16.8131]
[1728857774631,0.34526937,148.75,148.65,6.152]
[1728857774851,6.724,148.72,148.67,6.7262]
[1728857775149,6.7236,148.73,148.69,6.7253]
[1728857775355,6.7236,148.73,148.68,6.7257]
[1728857775859,6.724,148.72,148.68,6.7257]
[1728857776049,6.7245,148.71,148.66,23.5429]
[1728857776457,0.34526937,148.75,148.66,23.5429]
[1728857776458,6.7241,148.72,148.67,6.7262]
[1728857776637,6.7236,148.73,148.68,8.07069385]
[1728857776956,24.12215337,148.75,148.65,6.152]
[1728857776957,0.34526937,148.75,148.65,6.152]
[1728857777134,21.7961,148.76,148.71,6.7243]
[1728857777336,6.7227,148.75,148.7,6.7248]
[1728857778531,15.0739,148.76,148.71,1.34456062]
[1728857779031,15.0739,148.76,148.73,6.7235]
[1728857779231,15.0739,148.76,148.74,1.3444504]
[1728857779652,6.7206,148.8,148.75,6.7222]
[1728857779860,7.06606937,148.8,148.75,6.7226]
[1728857780059,7.06606937,148.8,148.73,16.8089]
[1728857780060,6.7208,148.79,148.74,6.7231]
[1728857781455,6.7213,148.78,148.73,23.5324]
[1728857781846,6.7223,148.76,148.7,16.8122]
[1728857782659,0.34526937,148.81,148.7,16.8122]
[1728857782962,6.7218,148.77,148.72,6.7239]
[1728857785169,0.34526937,148.76,148.7,16.8122]
[1728857785365,6.7228,148.75,148.7,23.5371]
[1728857785566,24.12215337,148.79,148.7,23.5371]
[1728857785872,6.7218,148.77,148.72,6.7239]
[1728857786056,0.34526937,148.76,148.7,16.8122]
[1728857786369,6.7227,148.75,148.7,23.537]
[1728857787468,0.34526937,148.78,148.59,114.00703177]
[1728857787469,16.4409,148.77,148.59,109.23893669]
[1728857787674,16.4409,148.77,148.67,16.8153]
[1728857787675,0.34526937,148.76,148.67,16.8153]
[1728857787966,24.12215337,148.76,148.67,16.8153]
[1728857788146,40.92865337,148.76,148.65,6.313]
[1728857788348,6.725,148.7,148.65,13.0401]
[1728857788768,6.7255,148.69,148.63,39.8304]
[1728857788976,6.725,148.7,148.65,6.7271]
[1728857789951,40.92865337,148.76,148.63,33.1027]
[1728857790158,40.92865337,148.76,148.67,6.7261]
[1728857790350,40.92865337,148.76,148.66,6.7266]
[1728857790351,6.7245,148.71,148.66,6.7266]
[1728857791270,6.7245,148.71,148.67,1.34500746]
[1728857791576,6.7245,148.71,148.66,6.7266]
[1728857792951,6.724,148.73,148.68,6.7254]
[1728857793155,6.724,148.73,148.69,1.34485764]
[1728857793672,7.06936937,148.72,148.67,23.541]
[1728857793876,0.34526937,148.72,148.67,16.8148]
[1728857794063,40.583384,148.76,148.67,16.8148]
[1728857794064,6.7244,148.71,148.67,16.8148]
[1728857795052,0.34526937,148.75,148.63,16.2835]
[1728857795256,15.714,148.73,148.64,16.819]
[1728857795459,6.7249,148.7,148.65,6.727]
[1728857795766,7.06966937,148.72,148.66,8.07140579]
[1728857795966,23.776884,148.72,148.66,18.16090579]
[1728857796168,22.4376,148.73,148.69,6.7253]
[1728857796479,22.4376,148.73,148.7,1.34484534]
[1728857796676,15.714,148.73,148.7,1.34486803]
[1728857796984,6.7227,148.75,148.7,6.7248]
[1728857797166,7.06796937,148.75,148.7,6.7248]
[1728857798058,6.7232,148.74,148.7,6.7248]
[1728857799880,6.7232,148.74,148.68,16.8137]
[1728857799881,6.7236,148.73,148.68,16.8137]
[1728857800089,0.34526937,148.74,148.68,23.5395]
[1728857800474,6.7236,148.73,148.68,23.5395]
[1728857802065,6.7246,148.71,148.66,6.7263]
[1728857802265,6.7246,148.71,148.66,10.08377183]
[1728857802569,6.7246,148.71,148.67,1.34505247]
[1728857802785,6.7246,148.71,148.66,13.44188567]
[1728857803065,7.07026937,148.7,148.65,16.8178]
[1728857804071,6.725,148.7,148.65,16.8178]
[1728857804389,6.725,148.7,148.65,23.5448]
[1728857805461,6.7254,148.69,148.65,23.5448]
[1728857805665,6.7254,148.69,148.64,6.7275]
[1728857805861,6.7254,148.69,148.65,1.34523519]
[1728857806073,30.84745337,148.7,148.65,8.07223519]
[1728857806265,6.7254,148.69,148.63,3.35913039]
[1728857806569,6.7254,148.69,148.64,6.7274]
[1728857807176,7.07106937,148.68,148.63,10.08626517]
[1728857807377,6.7258,148.68,148.64,1.34529272]
[1728857808070,6.7258,148.68,148.63,6.728]
[1728857808271,6.7258,148.68,148.64,8.07289149]
[1728857808972,15.8817,148.71,148.64,18.16349149]
[1728857809173,7.07026937,148.7,148.64,16.8182]
[1728857809489,6.7255,148.69,148.65,6.7271]
[1728857810165,6.7255,148.69,148.65,8.07232805]
[1728857810366,24.12215337,148.7,148.65,8.07232805]
[1728857810571,24.12215337,148.7,148.64,16.8182]
[1728857810572,6.7255,148.69,148.64,16.8182]
[1728857810887,6.7259,148.68,148.64,23.5454]
[1728857811982,0.34526937,148.67,148.64,16.8182]
[1728857812163,6.7259,148.68,148.64,16.8182]
[1728857812368,0.34526937,148.7,148.64,16.8182]
[1728857812369,6.7255,148.69,148.64,23.5457]
[1728857812594,0.34526937,148.68,148.64,23.5457]
[1728857813704,7.07076937,148.69,148.64,23.5457]
[1728857814193,0.34526937,148.69,148.64,16.8182]
[1728857814407,23.776884,148.7,148.65,1.34517654]
[1728857814702,23.776884,148.7,148.67,6.7262]
[1728857814899,24.12215337,148.7,148.67,6.7262]
[1728857815199,23.776884,148.7,148.67,6.7262]
[1728857815381,23.776884,148.7,148.66,6.7267]
[1728857815584,23.776884,148.7,148.67,1.34510486]
[1728857815778,23.40731868,148.75,148.68,6.7254]
[1728857815980,17.25211868,148.75,148.7,6.7249]
[1728857816202,16.0814,148.75,148.71,1.34473902]
[1728857816378,16.0814,148.75,148.71,6.7244]
[1728857816583,16.0814,148.75,148.72,1.34468353]
[1728857816777,6.7221,148.77,148.72,6.724]
[1728857817888,0.34526937,148.78,148.74,6.723]
[1728857818077,0.34526937,148.78,148.73,1.34454439]
[1728857818078,7.06656937,148.78,148.72,23.5327]
[1728857818400,0.34526937,148.78,148.72,23.5327]
[1728857818796,0.34526937,148.78,148.73,6.7232]
[1728857818998,0.34526937,148.78,148.74,6.7228]
[1728857819378,21.7554,148.79,148.75,1.34445335]
[1728857819700,1.51537819,148.82,148.77,6.7216]
[1728857819905,22.9198,148.83,148.78,1.34413082]
[1728857819906,16.2004,148.83,148.78,1.34413082]
[1728857820106,16.2004,148.83,148.79,6.7208]
[1728857820411,0.34526937,148.86,148.8,1.34389852]
[1728857820584,0.34526937,148.86,148.77,17.11345084]
[1728857820782,0.34526937,148.86,148.74,6.202]
[1728857820783,6.7191,148.83,148.78,6.721]
[1728857822182,6.7191,148.83,148.76,16.8047]
[1728857822183,24.12215337,148.82,148.76,16.8047]
[1728857822405,24.12215337,148.82,148.74,6.202]
[1728857822406,6.7205,148.8,148.74,6.202]
[1728857822607,7.06636937,148.79,148.73,6.7231]
[1728857823111,23.776884,148.8,148.75,6.7226]
[1728857823404,0.34526937,148.82,148.75,33.91995084]
[1728857823605,0.34526937,148.82,148.77,6.7217]
[1728857824211,7.06346937,148.85,148.79,6.7207]
[1728857824413,7.06346937,148.85,148.8,1.34387788]
[1728857824809,0.34526937,148.85,148.78,16.8033]
[1728857825116,0.34526937,148.86,148.81,6.7199]
[1728857825416,7.06296937,148.86,148.81,6.7199]
[1728857826490,0.34526937,148.86,148.82,1.343704]
[1728857826690,16.5624,148.87,148.83,6.719]
[1728857826892,7.06216937,148.88,148.83,6.719]
[1728857827884,6.7164,148.89,148.84,8.06219557]
[1728857828305,7.06216937,148.88,148.83,6.719]
[1728857828686,7.06216937,148.88,148.81,17.11345084]
[1728857828687,6.7178,148.86,148.81,6.7195]
[1728857828890,6.7188,148.84,148.79,23.5224]
[1728857829532,0.34526937,148.89,148.79,16.802]
[1728857829827,23.776884,148.85,148.8,6.7204]
[1728857829999,0.34526937,148.84,148.8,6.7204]
[1728857830418,30.84085337,148.84,148.79,23.5228]
[1728857830602,30.84085337,148.84,148.77,6.6384]
[1728857830603,39.70605337,148.84,148.76,16.8053]
[1728857830927,6.7195,148.82,148.77,6.7217]
[1728857831623,6.7191,148.83,148.78,8.06518803]
[1728857832815,39.70605337,148.84,148.76,16.8053]
[1728857832999,0.34526937,148.86,148.77,18.45728698]
[1728857833196,6.7191,148.83,148.78,6.7213]
[1728857834102,0.34526937,148.86,148.77,6.7217]
[1728857834103,6.7195,148.82,148.77,6.7217]
[1728857834304,6.7191,148.83,148.78,6.7213]
[1728857836198,23.776884,148.83,148.76,16.8045]
[1728857836511,0.34526937,148.82,148.76,16.8045]
[1728857836828,6.7197,148.82,148.77,6.7213]
[1728857837537,7.06536937,148.81,148.76,16.8045]
[1728857838228,7.06536937,148.81,148.76,23.5263]
[1728857838427,15.4982,148.82,148.77,1.34413132]
[1728857838738,23.776884,148.81,148.76,23.5267]
[1728857838928,7.06576937,148.8,148.76,16.8045]
[1728857840241,23.776884,148.81,148.76,16.8045]
[1728857840452,23.776884,148.81,148.77,6.7216]
[1728857840622,24.12215337,148.81,148.77,6.7216]
[1728857840822,30.84235337,148.81,148.76,23.5266]
[1728857841237,24.12215337,148.81,148.73,6.0601]
[1728857841446,6.7209,148.79,148.74,6.723]
[1728857841939,6.7209,148.79,148.73,22.869]
[1728857841940,0.34526937,148.78,148.73,22.869]
[1728857842140,6.7214,148.78,148.73,23.5324]
[1728857842524,6.7209,148.79,148.74,8.06733265]
[1728857842938,6.7209,148.79,148.74,6.723]
[1728857843718,23.776884,148.81,148.73,23.5324]
[1728857843719,7.06666937,148.78,148.73,23.5324]
[1728857843946,6.7219,148.77,148.73,16.8089]
[1728857844250,6.7209,148.79,148.74,8.0673964]
[1728857844453,6.7209,148.79,148.75,1.34436681]
[1728857845029,7.06656937,148.78,148.73,16.8089]
[1728857845234,7.06656937,148.78,148.73,23.5322]
[1728857845856,0.34526937,148.8,148.74,1.34440993]
[1728857846028,0.34526937,148.8,148.76,6.7218]
[1728857846550,7.06566937,148.8,148.76,8.06602489]
[1728857846736,0.34526937,148.81,148.76,8.06602489]
[1728857846930,22.56336937,148.82,148.77,6.7217]
[1728857847134,6.72,148.81,148.76,6.7221]
[1728857847342,7.06606937,148.8,148.75,23.5283]
[1728857848357,7.06566937,148.8,148.75,16.8058]
[1728857849146,6.7204,148.8,148.75,23.528]
[1728857849349,30.84215337,148.81,148.76,8.06627116]
[1728857849850,30.84215337,148.81,148.76,6.7221]
[1728857850047,6.72,148.81,148.77,6.7217]
[1728857850351,7.06576937,148.8,148.76,6.7221]
[1728857850537,7.06576937,148.8,148.75,16.8058]
[1728857850538,7.06576937,148.8,148.75,23.5284]
[1728857850740,6.7205,148.8,148.75,23.5284]
[1728857851044,22.2177,148.82,148.77,6.7217]
[1728857851433,7.06536937,148.81,148.76,6.7221]
[1728857852337,0.34526937,148.81,148.75,16.8058]
[1728857852539,6.7204,148.8,148.75,23.5281]
[1728857854133,0.34526937,148.79,148.75,16.8058]
[1728857854361,6.7215,148.78,148.73,6.7232]
[1728857854634,7.06616937,148.79,148.74,8.06743177]
[1728857854847,7.06616937,148.79,148.74,6.723]
[1728857855357,0.34526937,148.79,148.72,16.81]
[1728857855682,6.7219,148.77,148.72,23.5339]
[1728857856441,23.776884,148.81,148.72,16.81]
[1728857856442,7.06766937,148.76,148.72,16.81]
[1728857857534,23.776884,148.77,148.73,6.7234]
[1728857857878,24.12215337,148.77,148.73,6.7234]
[1728857858562,30.84405337,148.77,148.72,23.5339]
[1728857858748,7.06756937,148.76,148.72,16.81]
[1728857859338,6.7226,148.75,148.7,6.7248]
[1728857859548,0.34526937,148.74,148.7,6.7248]
[1728857859745,24.12215337,148.74,148.68,6.7257]
[1728857859952,6.724,148.72,148.68,6.7257]
[1728857860153,6.7236,148.73,148.68,6.7257]
[1728857860545,6.7236,148.73,148.69,1.34485441]
[1728857860749,6.7236,148.73,148.68,6.7257]
[1728857862849,23.776884,148.74,148.68,16.8137]
[1728857863152,24.12215337,148.74,148.68,16.8137]
[1728857863483,24.12215337,148.74,148.69,1.34478524]
[1728857863772,24.12215337,148.74,148.68,16.8137]
[1728857864366,24.12215337,148.74,148.7,6.7249]
[1728857864972,15.3573,148.75,148.71,8.06888485]
[1728857865582,30.84445337,148.76,148.7,16.8116]
[1728857865759,6.7228,148.75,148.71,1.34467992]
[1728857866773,0.34526937,148.76,148.71,1.34467992]
[1728857867070,6.7223,148.76,148.72,6.7239]
[1728857867369,0.34526937,148.76,148.72,6.7239]
[1728857867666,7.06746937,148.76,148.72,6.7239]
[1728857867967,0.34526937,148.76,148.72,6.7239]
[1728857868374,7.06756937,148.76,148.72,6.7239]
[1728857868874,7.06756937,148.76,148.7,16.8116]
[1728857869092,7.06756937,148.76,148.71,6.7244]
[1728857869375,6.7227,148.75,148.7,23.5364]
[1728857869566,0.34526937,148.74,148.7,23.5364]
[1728857870465,6.7227,148.75,148.7,23.5364]
[1728857870962,0.34526937,148.74,148.67,16.8153]
[1728857871166,6.267,148.75,148.65,6.5987]
[1728857871346,6.267,148.75,148.65,6.7271]
[1728857871347,6.7251,148.7,148.65,6.7271]
[1728857871546,0.34526937,148.74,148.64,16.8187]
[1728857871547,24.12215337,148.74,148.64,16.8187]
[1728857871751,24.12215337,148.74,148.66,6.7266]
[1728857871752,6.7245,148.71,148.66,6.7266]
[1728857872049,6.7245,148.71,148.67,8.07132281]
[1728857872268,23.776884,148.72,148.68,6.7256]
[1728857872470,24.12215337,148.72,148.68,6.7256]
[1728857872668,6.7231,148.74,148.69,8.07014767]
[1728857872977,24.12215337,148.73,148.69,8.07014767]
[1728857873275,30.84575337,148.73,148.68,6.7258]
[1728857873477,30.84575337,148.73,148.69,1.34488749]
[1728857873970,24.12215337,148.73,148.69,19.03543619]
[1728857874281,6.7227,148.75,148.7,6.7248]
[1728857874500,23.776884,148.74,148.71,1.34475867]
[1728857875192,0.34526937,148.75,148.71,1.34475867]
[1728857875366,15.9698,148.76,148.71,19.03410737]
[1728857875562,16.31506937,148.76,148.71,19.03410737]
[1728857875860,15.9698,148.76,148.71,10.9652487]
[1728857876064,22.6921,148.76,148.71,17.6896487]
[1728857876675,15.9698,148.76,148.72,8.06848018]
[1728857876875,6.7215,148.78,148.73,6.7235]
[1728857877083,6.7218,148.77,148.72,23.533]
[1728857877864,0.34526937,148.76,148.72,23.533]
[1728857878477,6.7218,148.77,148.72,23.533]
[1728857879790,0.34526937,148.76,148.72,23.533]
[1728857880189,0.34526937,148.76,148.72,16.8091]
[1728857880400,6.7225,148.76,148.72,16.8091]
[1728857880692,6.7225,148.76,148.72,18.15370671]
[1728857880865,6.7225,148.76,148.73,1.3445889]
[1728857881174,6.7225,148.76,148.72,16.8091]
[1728857881783,6.7225,148.76,148.72,18.15368876]
[1728857881986,0.34526937,148.79,148.71,10.9652487]
[1728857882191,0.34526937,148.79,148.68,6.4218]
[1728857882192,23.776884,148.75,148.66,10.9652487]
[1728857882492,6.7249,148.7,148.66,23.543]
[1728857882665,23.776884,148.73,148.66,16.8164]
[1728857882862,7.06966937,148.72,148.67,8.07087612]
[1728857883169,6.7244,148.72,148.67,6.7259]
[1728857883693,24.12215337,148.73,148.66,23.543]
[1728857883694,7.06976937,148.71,148.66,23.543]
[1728857883878,6.7245,148.71,148.66,23.543]
[1728857884277,15.2463,148.74,148.66,17.14225166]
[1728857884468,21.9695,148.74,148.69,6.7252]
[1728857885784,21.9695,148.74,148.69,8.07002271]
[1728857886167,21.9695,148.74,148.69,6.7252]
[1728857886792,6.7236,148.73,148.68,16.8138]
[1728857886992,24.12215337,148.73,148.64,6.555]
[1728857887197,6.7254,148.69,148.64,23.3733]
[1728857887708,7.07126937,148.68,148.64,16.8183]
[1728857888072,6.726,148.68,148.64,16.8183]
[1728857888470,6.7254,148.69,148.64,16.8183]
[1728857888674,6.7254,148.69,148.65,1.34525696]
[1728857889695,7.07016937,148.71,148.66,1.3452568]
[1728857890304,24.94773935,148.73,148.68,6.7257]
[1728857890305,0.34526937,148.73,148.68,6.7257]
[1728857890482,0.34526937,148.73,148.67,16.8157]
[1728857890683,6.7245,148.71,148.67,16.8157]
[1728857891903,6.7245,148.71,148.66,6.7265]
[1728857892197,7.07026937,148.7,148.65,6.7271]
[1728857892902,6.7254,148.69,148.64,23.5465]
[1728857893090,7.07146937,148.68,148.63,6.728]
[1728857893588,6.7263,148.67,148.62,6.7285]
[1728857894110,6.7259,148.68,148.63,6.728]
[1728857894314,0.34526937,148.67,148.63,6.728]
[1728857894789,6.7259,148.68,148.64,1.34535918]
[1728857895000,6.7259,148.68,148.63,6.728]
[1728857895679,0.34526937,148.67,148.63,6.728]
[1728857896304,24.12215337,148.67,148.61,16.8222]
[1728857896802,30.84845337,148.67,148.62,8.0738768]